fUSD/lending_fUSD_20250905
["ID","MTS","AMOUNT","RATE_DAILY","PERIOD"]
[383690053,1757088662449,-150.0,0.00033013,120]
[383690054,1757088662460,-500.0,0.00033025,2]
[383690055,1757088662469,-347.0,0.00033072,2]
[383690056,1757088662479,-347.0,0.00033079,2]
[383690057,1757088662488,-478.7794934,0.00033098,2]
[383690058,1757088662498,-347.0,0.00033121,2]
[383690059,1757088662509,-2636.54429553,0.00033134,19]
[383690060,1757088662519,-347.0,0.00033145,7]
[383690061,1757088662533,-150.0,0.0003315,120]
[383690062,1757088662543,-347.0,0.00033184,2]
[383690063,1757088662554,-244.22,0.00033209,2]
[383690064,1757088662563,-150.0,0.00033219,2]
[383690065,1757088662574,-347.0,0.00033237,2]
[383690066,1757088662584,-1425.0,0.00033246,2]
[383690067,1757088662595,-150.0,0.00033263,2]
[383690068,1757088662605,-150.0,0.00033287,120]
[383690069,1757088662615,-500.0,0.00033299,2]
[383690070,1757088662624,-1258.0,0.00033303,2]
[383690071,1757088662634,-347.0,0.00033318,2]
[383690072,1757088662643,-252.5416459,0.00033424,120]
[383690073,1757088662652,-347.0,0.00033436,2]
[383690074,1757088662665,-150.0,0.00033479,2]
[383690075,1757088662675,-26318.1,0.000335,2]
[383690076,1757088662684,-347.0,0.00033518,2]
[383690077,1757088662694,-1425.0,0.0003352,2]
[383690078,1757088662704,-530.81,0.00033534,2]
[383690079,1757088662714,-240.48,0.00033534,2]
[383690080,1757088662924,-409.38,0.00033534,2]
[383690081,1757088662934,-166.57,0.00033534,2]
[383690082,1757088662944,-166.57,0.00033534,2]
[383690083,1757088662955,-166.57,0.00033534,2]
[383690084,1757088662966,-298.26089446,0.00033543,2]
[383690085,1757088662976,-721.12765535,0.00033545,2]
[383690086,1757088662986,-500.0,0.00033573,2]
[383690087,1757088662996,-347.0,0.00033608,2]
[383690088,1757088663006,-508.26,0.00033698,7]
[383690089,1757088663016,-516.0,0.00033745,9]
[383690090,1757088663026,-1550.75,0.000338,30]
[383690091,1757088663037,-5856.45,0.000338,14]
[383690092,1757088663047,-1452.5465641,0.00033838,2]
[383690093,1757088663057,-766.4695547,0.00033838,2]
[383690094,1757088663067,-389.75942049,0.00033847,2]
[383690095,1757088663077,-9924.09676012,0.00033884,2]
[383690096,1757088663086,-8900.61030289,0.00033885,2]
[383690097,1757088663096,-2581.56180056,0.00033902,2]
[383690098,1757088663106,-272.49352838,0.00033907,2]
[383690099,1757088663115,-150.0,0.00033908,2]
[383690100,1757088663126,-21416.3924938,0.00033969,2]
[383690101,1757088663136,-7897.5583588,0.00033969,2]
[383690102,1757088663147,-200.0,0.00034,30]
[383690103,1757088663157,-4000.0,0.00034,12]
[383690104,1757088663168,-150.0,0.00034103,2]
[383690105,1757088663179,-151.21128972,0.00034157,2]
[383690106,1757088663189,-2636.54429553,0.00034164,22]
[383690107,1757088663199,-154.81659152,0.00034186,15]
[383690108,1757088663210,-150.0,0.00034226,2]
[383690109,1757088663220,-150.0,0.00034242,2]
[383690110,1757088663230,-1000.0,0.00034246,120]
[383690111,1757088663241,-4000.0,0.00034257,4]
[383690112,1757088663251,-1000.0,0.00034273,120]
[383690113,1757088663261,-26318.1,0.000343,2]
[383690114,1757088663270,-62338.04000002,0.000343,6]
[383690115,1757088663280,-175.65507422,0.00034301,120]
[383690116,1757088663289,-150.0,0.00034374,2]
[383690117,1757088663299,-508.26,0.00034383,9]
[383690118,1757088663308,-913.88,0.000344,7]
[383690119,1757088663318,-554.98,0.00034422,30]
[383690120,1757088663328,-150.0,0.00034463,5]
[383690121,1757088663340,-1425.0,0.00034506,2]
[383690122,1757088663350,-299.69649872,0.00034526,2]
[383690123,1757088663360,-8002.41,0.00034649,10]
[383690124,1757088663370,-150.99,0.00034649,2]
[383690125,1757088663380,-299.99,0.00034649,30]
[383690126,1757088663390,-1103.50696188,0.00034683,2]
[383690127,1757088663400,-167.86,0.00034687,2]
[383690128,1757088663410,-1425.0,0.0003469,2]
[383690129,1757088663420,-1550.75,0.000347,30]
[383690130,1757088663429,-5856.45,0.000347,14]
[383690131,1757088663439,-10000.0,0.00034748,31]
[383690132,1757088663449,-324.1069474,0.00034784,2]
[383690133,1757088663458,-171.0224745,0.00034784,2]
[383690134,1757088663468,-9924.09676012,0.00034801,2]
[383690135,1757088663478,-8900.61030289,0.00034801,2]
[383690136,1757088663488,-150.0,0.00034829,2]
[383690137,1757088663498,-4778.6430869,0.00034833,2]
[383690138,1757088663508,-1762.1834613,0.00034833,2]
[383690139,1757088663518,-259.67568731,0.00034842,2]
[383690140,1757088663530,-150.0,0.00034843,2]
[383690141,1757088663540,-418.98414516,0.00034854,2]
[383690142,1757088663551,-193.81,0.00034885,60]
[383690143,1757088663561,-6890.59938475,0.000349,2]
[383690144,1757088663572,-1683.21276169,0.000349,90]
[383690145,1757088663582,-309.29654756,0.00034912,2]
[383690146,1757088663592,-150.0,0.0003492,2]
[383690147,1757088663602,-1000.0,0.00034928,2]
[383690148,1757088663617,-1474.12928706,0.00034968,2]
[383690149,1757088663627,-1425.0,0.00034979,2]
[383690150,1757088663637,-158.45214069,0.00034981,2]
[383690151,1757088663647,-193.81,0.00034985,60]
[383690152,1757088663658,-1280.44721177,0.00034999,2]
[383690153,1757088663669,-961.2562767,0.00035,36]
[383690154,1757088663679,-168.59046445,0.00035,30]
[383690155,1757088663690,-4500.0,0.00035,14]
[383690156,1757088663701,-3010.69135387,0.00035,10]
[383690157,1757088663711,-351.00064004,0.00035,30]
[383690158,1757088663722,-1212.36956741,0.00035,2]
[383690159,1757088663732,-1525.68754326,0.00035,2]
[383690160,1757088663742,-2709.4131616,0.00035,120]
[383690161,1757088663752,-163.51560319,0.00035,120]
[383690162,1757088663762,-150.0,0.00035,5]
[383690163,1757088663772,-2747.0,0.00035,30]
[383690164,1757088663783,-214.78,0.00035,2]
[383690165,1757088663795,-250.0,0.00035,7]
[383690166,1757088663805,-250.0,0.0003501,5]
[383690167,1757088663815,-508.26,0.00035068,11]
[383690168,1757088663825,-193.83512561,0.00035085,60]
[383690169,1757088663835,-1038.55247373,0.00035093,7]
[383690170,1757088663846,-26318.1,0.000351,2]
[383690171,1757088663856,-5208.0,0.00035101,7]
[383690172,1757088663866,-1425.0,0.00035125,2]
[383690173,1757088663876,-1425.0,0.00035129,2]
[383690174,1757088663886,-1425.0,0.00035181,2]
[383690175,1757088663896,-2636.54429553,0.00035193,24]
[383690176,1757088663906,-150.0,0.00035244,2]
[383690177,1757088663917,-188.66226495,0.0003529,2]
[383690178,1757088663927,-177.20423338,0.00035293,30]
[383690179,1757088663937,-150.0,0.00035293,30]
[383690180,1757088663947,-1779.55317634,0.00035293,30]
[383690181,1757088663957,-150.0,0.00035293,30]
[383690182,1757088663966,-478.99432733,0.00035293,30]
[383690183,1757088663976,-150.0,0.0003534,2]
[383690184,1757088663986,-1425.0,0.00035361,2]
[383690185,1757088663996,-150.0,0.00035387,2]
[383690186,1757088664006,-150.0,0.00035403,2]
[383690187,1757088664016,-272.49352838,0.00035405,2]
[383690188,1757088664026,-150.0,0.00035437,2]
[383690189,1757088664036,-1625.0,0.00035452,2]
[383690190,1757088664046,-384.79986403,0.00035466,2]
[383690191,1757088664056,-1417.59,0.00035472,2]
[383690192,1757088664066,-1425.0,0.00035483,2]
[383690193,1757088664076,-5208.0,0.00035505,2]
[383690194,1757088664087,-500.0,0.00035537,30]
[383690195,1757088664097,-500.0,0.00035537,30]
[383690196,1757088664107,-500.0,0.00035537,30]
[383690197,1757088664117,-350.0,0.00035558,5]
[383690198,1757088664126,-1167.26654845,0.00035559,2]
[383690199,1757088664137,-275.61570193,0.0003559,2]
[383690200,1757088664147,-1550.75,0.000356,30]
[383690201,1757088664157,-58600.05,0.000356,14]
[383690202,1757088664169,-5856.45,0.000356,14]
[383690203,1757088664179,-1425.0,0.00035603,2]
[383690204,1757088664189,-1000.0,0.00035616,60]
[383690205,1757088664199,-499.98,0.00035616,60]
[383690206,1757088664209,-400.0,0.00035616,60]
[383690207,1757088664219,-1475.0,0.00035616,120]
[383690208,1757088664228,-1425.0,0.00035626,2]
[383690209,1757088664239,-312.06,0.000357,9]
[383690210,1757088664251,-9924.09676012,0.00035718,2]
[383690211,1757088664261,-8900.61030289,0.00035718,2]
[383690212,1757088664270,-1425.0,0.0003573,2]
[383690213,1757088664280,-1425.0,0.00035731,2]
[383690214,1757088664291,-508.26,0.00035753,13]
[383690215,1757088664301,-150.0,0.00035755,7]
[383690216,1757088664311,-1425.0,0.00035769,2]
[383690217,1757088664322,-1425.0,0.00035769,2]
[383690218,1757088664333,-500.0,0.00035811,30]
[383690219,1757088664343,-500.0,0.00035811,30]
[383690220,1757088664353,-1425.0,0.00035827,2]
[383690221,1757088664364,-2581.56180056,0.00035835,2]
[383690222,1757088664374,-1425.0,0.00035842,2]
[383690223,1757088664383,-1178.96147,0.00035888,30]
[383690224,1757088664393,-229.49847026,0.00035892,47]
[383690225,1757088664402,-1425.0,0.00035897,2]
[383690226,1757088664412,-220827.7490392,0.000359,30]
[383690227,1757088664421,-26318.1,0.000359,2]
[383690228,1757088664431,-2300.0,0.000359,13]
[383690229,1757088664440,-1425.0,0.00035925,2]
[383690230,1757088664450,-1425.0,0.0003593,2]
[383690231,1757088664460,-150.0,0.00035932,7]
[383690232,1757088664469,-150.0,0.00035954,7]
[383690233,1757088664479,-1425.0,0.00035966,2]
[383690234,1757088664489,-666.0,0.00035999,10]
[383690235,1757088664499,-900.0,0.00036,37]
[383690236,1757088664509,-195114.6254767,0.00036,4]
[383690237,1757088664535,-344.10978337,0.00036,4]
[383690238,1757088665182,-896.0,0.0002973,2]
[383690239,1757088665192,-337.988161,0.000301,7]
[383690240,1757088665200,-151.0,0.000301,7]
[383690241,1757088665209,-337.988161,0.000301,7]
[383690242,1757088665218,-151.0,0.000301,7]
[383690243,1757088665226,-337.988161,0.00030101,7]
[383690244,1757088665235,-151.0,0.00030101,7]
[383690245,1757088665244,-337.988161,0.00030101,7]
[383690246,1757088665253,-337.988161,0.0003012,7]
[383690247,1757088665262,-151.0,0.0003012,7]
[383690248,1757088665271,-337.988161,0.00030129,7]
[383690249,1757088665280,-151.0,0.00030129,7]
[383690250,1757088665288,-337.988161,0.0003013,7]
[383690251,1757088665297,-151.0,0.0003013,7]
[383690252,1757088665307,-896.0,0.0003273,2]
[383690253,1757088665316,-201892.75261992,0.00036,4]
[383690254,1757088665325,-840.57270273,0.00036,120]
[383690255,1757088665497,-10657.9367033,0.00036,2]
[383690256,1757088665505,-174.51154411,0.00036,120]
[383690257,1757088665513,-1000.0,0.00036,30]
[383690258,1757088665521,-277.0,0.00036,30]
[383690259,1757088665532,-193.5488636,0.00036,2]
[383690260,1757088665541,-79145.20640448,0.00036,2]
[383690261,1757088665549,-448.23279946,0.00036,5]
[383690262,1757088665556,-4000.0,0.00036007,4]
[383690263,1757088665565,-500.0,0.00036085,30]
[383690264,1757088665575,-500.0,0.00036085,30]
[383690265,1757088665585,-1178.96147,0.00036088,30]
[383690266,1757088665595,-450.0,0.00036106,5]
[383690267,1757088665608,-2636.54429553,0.00036222,26]
[383690268,1757088665617,-320.74051982,0.00036281,2]
[383690269,1757088665627,-747.8093786,0.00036284,2]
[383690270,1757088665637,-1178.96147,0.00036288,30]
[383690271,1757088665646,-5500.0,0.000363,17]
[383690272,1757088665656,-500.0,0.00036359,30]
[383690273,1757088665666,-500.0,0.00036359,30]
[383690274,1757088665676,-150.0,0.00036434,120]
[383690275,1757088665686,-700.13793965,0.00036438,60]
[383690276,1757088665696,-499.98,0.00036438,60]
[383690277,1757088665706,-508.26,0.00036438,15]
[383690278,1757088665716,-167.55599877,0.00036459,2]
[383690279,1757088665726,-176.88013964,0.00036467,2]
[383690280,1757088665737,-176.88013964,0.00036467,2]
[383690281,1757088665747,-176.88013964,0.00036467,2]
[383690282,1757088665757,-176.88013964,0.00036467,2]
[383690283,1757088665767,-176.88013964,0.00036467,2]
[383690284,1757088665777,-176.88013964,0.00036467,2]
[383690285,1757088665787,-176.88013964,0.00036467,2]
[383690286,1757088665797,-1178.96147,0.00036488,30]
[383690287,1757088665807,-1523.28145936,0.000365,120]
[383690288,1757088665817,-302.4415245,0.000366,7]
[383690289,1757088665827,-500.0,0.00036633,30]
[383690290,1757088665836,-500.0,0.00036633,30]
[383690291,1757088665846,-9924.09676012,0.00036634,2]
[383690292,1757088665856,-8900.61030289,0.00036634,2]
[383690293,1757088665866,-4248.14932773,0.00036652,9]
[383690294,1757088665876,-550.0,0.00036654,5]
[383690295,1757088665886,-1178.96147,0.00036688,30]
[383690296,1757088665896,-666.0,0.00036699,10]
[383690297,1757088665907,-1000.0,0.00036699,30]
[383690298,1757088665917,-1550.75,0.000367,30]
[383690299,1757088665927,-58600.05,0.000367,14]
[383690300,1757088665937,-5856.45,0.000367,14]
[383690301,1757088665949,-698.58516426,0.00036781,7]
[383690302,1757088665959,-8897.64,0.000368,7]
[383690303,1757088665968,-1779.52,0.000368,7]
[383690304,1757088665978,-1955.59,0.000368,7]
[383690305,1757088665988,-3694.86,0.000368,7]
[383690306,1757088666000,-296.64,0.000368,7]
[383690307,1757088666009,-176.88013964,0.00036821,2]
[383690308,1757088666019,-176.88013964,0.00036821,2]
[383690309,1757088666029,-176.88013964,0.00036821,2]
[383690310,1757088666039,-176.88013964,0.00036821,2]
[383690311,1757088666048,-176.88013964,0.00036821,2]
[383690312,1757088666057,-152.0,0.00036833,3]
[383690313,1757088666067,-3929.8715,0.00036888,7]
[383690314,1757088666077,-1178.96147,0.00036888,30]
[383690315,1757088666088,-26318.1,0.000369,2]
[383690316,1757088666098,-272.49352838,0.00036903,2]
[383690317,1757088666109,-500.0,0.00036907,30]
[383690318,1757088666118,-500.0,0.00036907,30]
[383690319,1757088666128,-13854.99618967,0.0003691,2]
[383690320,1757088666138,-150.0,0.00036913,120]
[383690321,1757088666147,-11284.71536514,0.00036915,2]
[383690322,1757088666159,-4510.5302392,0.00036975,2]
[383690323,1757088666169,-300.0,0.00036999,10]
[383690324,1757088666178,-258.35186802,0.00037,30]
[383690325,1757088666188,-2000.0,0.00037,2]
[383690326,1757088666198,-2000.0,0.00037,2]
[383690327,1757088666208,-2000.0,0.00037,2]
[383690328,1757088666218,-2000.0,0.00037,2]
[383690329,1757088666228,-1254.5587,0.00037,2]
[383690330,1757088666238,-17000.0,0.00037,120]
[383690331,1757088666248,-162.39992886,0.00037,2]
[383690332,1757088666258,-11451.1282753,0.00037,30]
[383690333,1757088666267,-1000.0,0.00037,30]
[383690334,1757088666277,-277.0,0.00037,30]
[383690335,1757088666287,-2000.0,0.00037,2]
[383690336,1757088666297,-2000.0,0.00037,2]
[383690337,1757088666306,-192.0,0.00037,30]
[383690338,1757088666316,-900.0,0.00037,38]
[383690339,1757088666326,-277.0,0.00037,2]
[383690340,1757088666336,-58600.05,0.00037,14]
[383690341,1757088666346,-1103.50696188,0.00037015,2]
[383690342,1757088666355,-516.0,0.00037049,12]
[383690343,1757088666365,-1178.96147,0.00037088,30]
[383690344,1757088666374,-300.0,0.00037099,10]
[383690345,1757088666384,-508.26,0.00037123,17]
[383690346,1757088666394,-210.0,0.0003713,2]
[383690347,1757088666404,-500.0,0.00037181,30]
[383690348,1757088666415,-500.0,0.00037181,30]
[383690349,1757088666426,-520.73960153,0.000372,30]
[383690350,1757088666435,-286.11434838,0.000372,120]
[383690351,1757088666445,-286.11434836,0.000372,120]
[383690352,1757088666454,-286.11434836,0.000372,120]
[383690353,1757088666464,-286.11434836,0.000372,120]
[383690354,1757088666474,-650.0,0.00037202,5]
[383690355,1757088666484,-19832.61006274,0.0003724,5]
[383690356,1757088666498,-554.58321783,0.0003724,5]
[383690357,1757088666509,-4387.37467605,0.0003724,5]
[383690358,1757088666537,-22786.77318325,0.0003724,5]
[383690359,1757088666547,-2636.54429553,0.00037251,28]
[383690360,1757088666556,-499.98,0.0003726,60]
[383690361,1757088666566,-1178.96147,0.00037288,30]
[383690362,1757088666578,-301.7725916,0.0003737,2]
[383690363,1757088666588,-250.0,0.0003737,2]
[383690364,1757088666597,-459.01349341,0.0003739,14]
[383690365,1757088666608,-1503.016457,0.000374,24]
[383690366,1757088666618,-500.0,0.00037455,30]
[383690367,1757088666627,-500.0,0.00037455,30]
[383690368,1757088666638,-1178.96147,0.00037488,30]
[383690369,1757088666647,-165.57280891,0.000375,120]
[383690370,1757088666657,-12412.3843153,0.000375,14]
[383690371,1757088666670,-2783.2,0.000375,14]
[383690372,1757088666682,-2091.54442055,0.000375,14]
[383690380,1757089063301,156.88,0.00013699,2]
[383690387,1757089333090,1000.0,0.0002552,120]
[383690391,1757089508889,13555.08,0.0002,2]
[383690392,1757089509581,-184.18194869,0.0002,2]
[383690393,1757089513732,-171.80693099,0.0002,2]
[383690394,1757089515233,-228.92556834,0.0002,2]
[383690395,1757089518060,-152.0,0.0002,2]
[383690396,1757089520595,-250.3713,0.0002,2]
[383690397,1757089524666,-313.91,0.0002,2]
[383690398,1757089527347,-205.12466,0.0002,2]
[383690400,1757089530190,-194.78974671,0.0002,2]
[383690401,1757089532463,-287.83152317,0.0002,2]
[383690402,1757089535215,-349.94076901,0.0002,2]
[383690403,1757089549166,5445.61517689,0.0001995,15]
[383690409,1757089657654,15000.0,0.00018,2]
[383690410,1757089657681,2500.0,0.00018,2]
[383690411,1757089657707,60168.00201617,0.00018,2]
[383690412,1757089683975,171.1,0.00012572,2]
[383690413,1757089684141,171.1,0.00015715,2]
[383690422,1757089687268,-165.22,0.00018858,2]
[383690425,1757089689924,-5.88,0.00018858,2]
[383690470,1757089788070,-167.75825585,0.0001971,2]
[383690471,1757089803995,-37.36640415,0.0001971,2]
[383690472,1757089804019,-195.0,0.00019845,2]
[383690473,1757089804042,-382.1621669,0.000199,2]
[383690474,1757089804065,-222.0,0.0001998,2]
[383690475,1757089804089,-300.0,0.00019999,2]
[383690476,1757089804112,-300.0,0.00019999,2]
[383690477,1757089804135,-1200.0,0.00019999,2]
[383690478,1757089804158,-187.25298072,0.00019999,2]
[383690479,1757089804180,-500.0,0.00019999,2]
[383690480,1757089804202,-185.78095444,0.00019999,2]
[383690481,1757089804227,-353.30213494,0.00019999,2]
[383690482,1757089804249,-11137.13535885,0.0002,2]
[383690483,1757089804983,-15000.0,0.0002,2]
[383690484,1757089807322,-15000.0,0.0002,2]
[383690485,1757089813131,-5000.0,0.0002,2]
[383690496,1757089832366,-300.23,0.00019887,2]
[383690497,1757089832380,-2740.80433534,0.0002,2]
[383690498,1757089832389,-292.40704026,0.00020486,2]
[383690499,1757089832401,-7.59295974,0.00020486,2]
[383690500,1757089832410,-354.49506064,0.00020486,2]
[383690501,1757089832423,-145.50493936,0.00020486,2]
[383690502,1757089832438,-300.0,0.00020893,2]
[383690503,1757089832448,-432.97039181,0.00020893,2]
[383690504,1757089832482,-67.02960819,0.00020893,2]
[383690505,1757089832492,-1100.0,0.00020972,2]
[383690506,1757089832502,-226.00273683,0.00020973,2]
[383690507,1757089832512,-500.0,0.00020973,2]
[383690508,1757089832522,-500.0,0.00020973,2]
[383690509,1757089832531,-500.0,0.00020973,2]
[383690510,1757089832541,-42377.27226389,0.00021,2]
[383690511,1757089832551,-1000.0,0.00021521,2]
[383690512,1757089832560,-1000.0,0.00021521,2]
[383690513,1757089832569,-195.0,0.00021681,2]
[383690514,1757089832579,-420.0,0.00021777,2]
[383690515,1757089832588,-1200.0,0.00021881,2]
[383690516,1757089832598,-300.0,0.00021888,2]
[383690517,1757089832607,-250.0,0.0002189,2]
[383690518,1757089832620,-168.0,0.00021915,2]
[383690519,1757089832629,-151.0,0.00021997,2]
[383690520,1757089832639,-300.0,0.00022,2]
[383690521,1757089832648,-250.0,0.00022,2]
[383690522,1757089832657,-500.0,0.00022,2]
[383690523,1757089832667,-171.1,0.00022001,2]
[383690524,1757089832676,-151.0,0.00022006,2]
[383690525,1757089832688,-151.0,0.00022023,2]
[383690526,1757089832697,-151.0,0.00022057,2]
[383690527,1757089832707,-1000.0,0.00022068,2]
[383690528,1757089832717,-1000.0,0.00022068,2]
[383690529,1757089832727,-283.0,0.00023712,2]
[383690530,1757089832737,-1236.66,0.00024,5]
[383690531,1757089832747,-2164.34179796,0.000242,2]
[383690532,1757089832756,-150.0,0.0002464,2]
[383690533,1757089832766,-1685.68053646,0.000249,2]
[383690534,1757089832776,-156.88,0.00024907,2]
[383690535,1757089832785,-1881.999999,0.00025,7]
[383690536,1757089832794,-200.0,0.00025031,2]
[383690537,1757089832803,-171.1,0.00025144,2]
[383690538,1757089832812,-182.77,0.000255,2]
[383690539,1757089832822,-180.42,0.00025579,2]
[383690540,1757089832833,-4116.49,0.000257,7]
[383690541,1757089832844,-770.33,0.000257,7]
[383690542,1757089832854,-250.0,0.00025704,2]
[383690543,1757089832865,-5151.2914809,0.00025729,2]
[383690544,1757089833143,-84455.51634272,0.000258,7]
[383690545,1757089833197,-12643.47774825,0.000258,7]
[383690546,1757089833216,-168.67180485,0.00025829,2]
[383690547,1757089833228,-1685.68053617,0.00025929,4]
[383690548,1757089833239,-4429.57683373,0.00026,2]
[383690549,1757089833250,-277.95693726,0.00026,2]
[383690550,1757089833260,-211.98843799,0.00026,2]
[383690551,1757089833270,-1523.47,0.00026106,2]
[383690552,1757089833280,-231.93,0.00026329,2]
[383690553,1757089833290,-200.0,0.00026422,2]
[383690554,1757089833300,-13229.45750741,0.000265,2]
[383690555,1757089833310,-160.0,0.00026714,7]
[383690556,1757089833320,-2887.29,0.00026871,2]
[383690557,1757089833330,-1685.68053617,0.00026959,6]
[383690558,1757089833340,-5151.29148085,0.00027043,2]
[383690559,1757089833350,-516.0,0.00027137,2]
[383690560,1757089833360,-155.68,0.00027225,2]
[383690561,1757089833370,-4116.49,0.000273,7]
[383690562,1757089833380,-770.33,0.000273,7]
[383690563,1757089833391,-462.48,0.00027425,30]
[383690564,1757089833401,-358.52,0.0002794,2]
[383690565,1757089833412,-1685.68053617,0.00027988,8]
[383690566,1757089833424,-5000.0,0.00028,2]
[383690567,1757089833437,-287.54,0.00028083,2]
[383690568,1757089833447,-160.51,0.00028087,2]
[383690569,1757089833457,-5151.29148085,0.00028356,2]
[383690570,1757089833467,-275.42,0.00028492,2]
[383690571,1757089833477,-3000.0,0.00028749,2]
[383690572,1757089833487,-3914.14961827,0.000289,7]
[383690573,1757089833517,-202.34038173,0.000289,7]
[383690574,1757089833526,-770.33,0.000289,7]
[383690575,1757089833536,-160.0,0.00028909,2]
[383690576,1757089833545,-627.15951727,0.00029017,11]
[383690577,1757089833565,-1058.5210189,0.00029017,11]
[383690578,1757089833574,-1660.69,0.00029292,2]
[383690579,1757089833584,-34668.1073,0.00029302,2]
[383690580,1757089833593,-1000.0,0.00029302,2]
[383690581,1757089833603,-1000.0,0.00029302,2]
[383690582,1757089833612,-2116.4922,0.00029302,2]
[383690583,1757089833622,-2500.0,0.00029302,2]
[383690584,1757089833633,-4174.83331979,0.00029353,2]
[383690585,1757089833645,-2056.36230159,0.00029353,2]
[383690586,1757089833656,-64285.37011787,0.00029392,3]
[383690587,1757089833669,-11503.95514365,0.00029392,3]
[383690588,1757089833683,-24205.61111538,0.00029392,3]
[383690589,1757089833694,-10137.6966454,0.00029392,3]
[383690590,1757089833704,-1660.69,0.00029392,2]
[383690591,1757089833714,-1077.63734681,0.00029401,15]
[383690592,1757089833723,-5504.57283876,0.00029402,2]
[383690593,1757089833735,-2393.8575,0.00029402,2]
[383690595,1757089837728,-1000.0,0.00019887,2]
[383690596,1757089837740,-2863.0,0.00029402,2]
[383690597,1757089837787,-1969.5695428,0.00029402,2]
[383690598,1757089837800,-585.4481653,0.00029402,2]
[383690599,1757089837812,-14105.12767585,0.00029402,2]
[383690600,1757089837848,-1177.29,0.00029402,2]
[383690601,1757089837860,-619.97539516,0.00029402,2]
[383690602,1757089837958,-905.83849658,0.00029402,2]
[383690603,1757089837971,-699.30975398,0.00029402,2]
[383690608,1757089839793,-2228.79200375,0.00029402,2]
[383690609,1757089839847,-311.42389818,0.00029402,2]
[383690610,1757089839860,-572.4212399,0.00029402,2]
[383690611,1757089839902,-30924.19512292,0.00029402,2]
[383690612,1757089840157,-314.64034113,0.00029402,2]
[383690621,1757089842919,-480.0466681,0.00020999,2]
[383690622,1757089842930,-2410.83672182,0.00029402,2]
[383690623,1757089843021,-105.11562837,0.00029402,2]
[383690624,1757089843033,-123393.3002755,0.00029402,2]
[383690625,1757089843043,-287.54,0.00029453,2]
[383690626,1757089843052,-5151.29148085,0.0002967,2]
[383690627,1757089843062,-16954.38482311,0.000299,2]
[383690628,1757089843071,-275.42,0.00029917,2]
[383690629,1757089843080,-570.2482,0.0003,10]
[383690630,1757089843089,-1685.68053617,0.00030046,13]
[383690631,1757089843098,-200.0,0.00030137,2]
[383690632,1757089843108,-451.0,0.00030137,120]
[383690633,1757089843117,-179.54,0.00030137,30]
[383690634,1757089843126,-1400.0,0.00030188,7]
[383690635,1757089843136,-809.23995426,0.00030192,7]
[383690636,1757089843145,-1400.0,0.00030207,7]
[383690637,1757089843154,-6231.19562132,0.00030264,2]
[383690638,1757089843163,-1300.0,0.00030265,7]
[383690639,1757089843173,-500.0,0.00030267,7]
[383690640,1757089843182,-218.73871622,0.00030309,7]
[383690641,1757089843191,-1200.0,0.00030318,7]
[383690643,1757089843201,-10137.6966454,0.00030347,3]
[383690645,1757089843210,-500.0,0.00030357,7]
[383690647,1757089843219,-14284.990911,0.00030375,3]
[383690649,1757089843229,-500.0,0.00030381,7]
[383690650,1757089843239,-600.0,0.00030385,7]
[383690651,1757089843248,-1400.0,0.00030416,7]
[383690652,1757089843258,-500.0,0.0003042,7]
[383690653,1757089843267,-1400.0,0.00030432,7]
[383690654,1757089843276,-1200.0,0.00030447,7]
[383690656,1757089843286,-10137.6966454,0.00030499,3]